bitfinex/quotes_ETHUSD_20250404
["timestamp","ask_amount","ask_price","bid_price","bid_amount"]
[1743765527045,6.12,1783.4,1783.1,5.60803]
[1743765527249,6.12,1783.4,1783.2,5.60788]
[1743765527536,6.12,1783.4,1783.1,11.21611]
[1743765527827,6.12,1783.4,1783.1,11.21607]
[1743765528029,5.13670562,1783.7,1782.9,9.21191208]
[1743765528264,5.13670562,1783.7,1783.4,11.214]
[1743765528570,0.55,1783.6,1783.3,5.60754]
[1743765528775,0.55,1783.6,1783.2,5.60778]
[1743765528930,1.6269,1783.5,1783.1,5.60816]
[1743765529136,1.6269,1783.5,1783.0,0.92119121]
[1743765529331,1.6269,1783.5,1783.1,5.60805]
[1743765529536,0.55,1783.4,1783.0,5.60838]
[1743765529840,0.55,1783.4,1783.0,1.64070721]
[1743765530057,0.55,1783.4,1782.9,6.21180208]
[1743765530370,0.55,1783.4,1783.0,11.21702]
[1743765530770,0.55,1783.4,1783.0,5.60851]
[1743765530938,0.55,1783.4,1783.0,11.21689]
[1743765531138,0.55,1783.4,1783.0,5.60838]
[1743765531339,0.55,1783.4,1783.1,5.60807]
[1743765531860,0.55,1783.4,1783.0,6.79049721]
[1743765532034,5.60769,1783.3,1783.0,1.18202721]
[1743765532232,5.60822,1783.1,1782.8,6.03126075]
[1743765532765,11.21662,1783.1,1782.7,10.11791]
[1743765532991,7.18205,1782.8,1782.4,5.61027]
[1743765533191,7.18205,1782.8,1782.4,11.22052]
[1743765533482,7.18205,1782.8,1782.4,11.22051]
[1743765533768,11.21934,1782.7,1782.3,6.02470354]
[1743765533933,11.21934,1782.7,1782.3,0.41398354]
[1743765533934,6.12,1782.7,1782.3,0.41398354]
[1743765534133,6.12,1782.7,1782.5,5.60998]
[1743765535254,6.12,1782.7,1782.5,11.21993]
[1743765535464,6.12,1782.7,1782.5,5.60995]
[1743765535771,6.12,1782.7,1782.5,6.731979]
[1743765535966,6.12,1782.7,1782.6,5.60978]
[1743765536340,7.17778,1783.0,1782.6,11.21945]
[1743765536540,5.60888,1782.9,1782.6,5.60967]
[1743765537062,5.60917,1782.8,1782.5,6.731959]
[1743765537460,5.60952,1782.7,1782.4,5.61035]
[1743765537765,5.60952,1782.7,1782.3,7.58593598]
[1743765537766,11.21917,1782.7,1782.3,6.02783598]
[1743765537951,5.60983,1782.6,1782.3,9.02788598]
[1743765538147,1.5735,1782.7,1782.1,1.5581]
[1743765538349,11.22054,1782.5,1782.1,5.61125]
[1743765538544,5.61026,1782.5,1782.1,6.733488]
[1743765538872,0.55,1782.5,1782.2,5.61094]
[1743765539073,6.16012,1782.5,1782.1,11.2226]
[1743765539570,6.16012,1782.5,1782.2,5.61104]
[1743765539767,11.7298,1782.6,1782.2,5.61092]
[1743765539974,6.12,1782.6,1782.3,5.61061]
[1743765540163,6.12,1782.6,1782.2,11.22187]
[1743765540370,11.72987,1782.6,1782.2,6.73867736]
[1743765540875,17.33983,1782.6,1782.2,12.34954736]
[1743765541084,5.61023,1782.5,1782.2,1.12779736]
[1743765541291,0.55,1782.5,1782.1,0.42583911]
[1743765541588,6.16015,1782.5,1782.0,5.61165]
[1743765541763,5.61086,1782.3,1781.9,5.61183]
[1743765541970,5.61086,1782.3,1781.9,11.22372]
[1743765542187,5.61086,1782.3,1781.9,12.646092]
[1743765543070,5.61086,1782.3,1782.0,5.61166]
[1743765543460,7.2497,1782.4,1782.0,11.22315]
[1743765543663,7.2497,1782.4,1782.1,5.61125]
[1743765543889,5.68670562,1782.8,1782.5,5.61009]
[1743765544100,6.77130562,1782.8,1782.6,0.61710961]
[1743765544289,12.38058562,1782.8,1782.3,5.61053]
[1743765544495,6.77130562,1782.8,1782.4,5.61028]
[1743765544688,12.38056562,1782.8,1782.4,11.22054]
[1743765544896,6.77130562,1782.8,1782.6,5.60962]
[1743765545392,6.77130562,1782.8,1782.5,5.61004]
[1743765545589,12.38058562,1782.8,1782.4,5.61035]
[1743765545803,12.38058562,1782.8,1782.4,11.22052]
[1743765546012,12.38058562,1782.8,1782.4,5.61024]
[1743765546161,12.38058562,1782.8,1782.4,6.171264]
[1743765546360,12.38058562,1782.8,1782.4,11.781504]
[1743765546772,12.38058562,1782.8,1782.5,5.60997]
[1743765546966,12.38058562,1782.8,1782.4,11.781544]
[1743765547171,12.38058562,1782.8,1782.4,6.171264]
[1743765547390,0.55,1783.0,1782.6,5.60978]
[1743765547563,0.55,1783.0,1782.5,2.25082304]
[1743765547564,5.13670562,1783.2,1782.9,5.60856]
[1743765547763,10.74464562,1783.2,1782.9,5.60856]
[1743765548191,16.35270562,1783.2,1782.8,5.60908]
[1743765548392,5.6083,1783.1,1782.8,5.60908]
[1743765548595,5.60854,1783.0,1782.7,5.60942]
[1743765548958,7.19674,1783.0,1782.7,5.60942]
[1743765549163,1.5882,1783.0,1782.8,5.60904]
[1743765549376,5.60833,1783.1,1782.7,5.60942]
[1743765549690,5.60856,1783.0,1782.7,5.60942]
[1743765549864,5.60833,1783.1,1782.7,12.340683]
[1743765550060,0.55,1783.1,1782.7,1.121913]
[1743765550261,7.19736,1782.8,1782.5,5.61003]
[1743765550495,5.60959,1782.7,1782.3,7.1676]
[1743765550665,5.60976,1782.7,1782.3,5.6107]
[1743765550860,5.60981,1782.6,1782.3,5.61056]
[1743765551195,5.60951,1782.7,1782.3,6.732844]
[1743765551383,5.61,1782.6,1782.2,5.61097]
[1743765551591,5.60978,1782.6,1782.1,7.16821]
[1743765551782,5.61023,1782.5,1782.1,5.61131]
[1743765551980,7.79251,1782.4,1782.0,11.22319]
[1743765552303,7.79251,1782.4,1782.0,11.63557182]
[1743765552499,7.79251,1782.4,1782.0,6.91736438]
[1743765552659,5.61081,1782.3,1782.0,5.61157]
[1743765553569,7.79251,1782.4,1782.1,5.61133]
[1743765553777,2.182,1782.4,1782.1,5.61124]
[1743765553998,1.632,1782.4,1782.2,5.61099]
[1743765554199,1.632,1782.4,1782.1,11.22242]
[1743765554397,11.22041,1782.5,1782.1,6.733422]
[1743765554579,11.2204,1782.5,1782.1,6.733422]
[1743765554905,11.22106,1782.4,1782.0,5.61162]
[1743765555213,5.61014,1782.5,1782.1,5.61133]
[1743765555380,0.55,1782.5,1782.2,5.61099]
[1743765555597,5.13670562,1782.6,1782.5,5.61009]
[1743765555893,30.83693,1783.2,1782.5,6.732087]
[1743765555894,11.72816,1782.8,1782.5,6.732087]
[1743765556206,11.72828,1782.8,1782.4,5.6104]
[1743765556407,5.60958,1782.7,1782.4,5.6104]
[1743765556786,5.60958,1782.7,1782.3,11.22134]
[1743765557428,6.118,1782.7,1782.4,5.61028]
[1743765557627,11.72758,1782.7,1782.4,5.61028]
[1743765557776,1.5256,1782.6,1782.3,5.61061]
[1743765557979,5.61029,1782.5,1782.1,14.2226]
[1743765558289,5.61029,1782.5,1782.1,8.6112]
[1743765558620,7.13542,1782.6,1782.3,5.61056]
[1743765558780,1.5256,1782.6,1782.4,5.6104]
[1743765558975,1.5256,1782.6,1782.3,5.61056]
[1743765559209,1.5256,1782.6,1782.3,1.122157]
[1743765559410,1.5256,1782.6,1782.4,5.61041]
[1743765559577,6.118,1782.7,1782.5,5.61009]
[1743765559780,6.118,1782.7,1782.4,7.24989]
[1743765560190,6.118,1782.7,1782.5,5.61009]
[1743765560403,12.27746,1782.7,1782.6,0.561009]
[1743765560611,6.118,1782.7,1782.4,11.22055]
[1743765561211,6.118,1782.7,1782.5,5.61008]
[1743765561508,6.118,1782.7,1782.4,5.61027]
[1743765562007,6.118,1782.7,1782.5,5.60999]
[1743765562410,6.118,1782.7,1782.6,5.60978]
[1743765562618,6.118,1782.7,1782.6,1.121974]
[1743765562981,6.118,1782.7,1782.6,6.731754]
[1743765563420,6.118,1783.0,1782.9,5.60854]
[1743765563784,6.118,1783.0,1782.7,5.60945]
[1743765563996,5.60868,1783.0,1782.6,8.309124]
[1743765564330,5.60959,1782.7,1782.3,12.343247]
[1743765564483,5.60979,1782.6,1782.3,6.732697]
[1743765564887,0.55,1782.7,1782.4,5.61027]
[1743765565121,6.15948,1782.7,1782.3,6.732777]
[1743765565417,6.15948,1782.7,1782.3,12.343397]
[1743765565916,6.15948,1782.7,1782.4,5.61023]
[1743765566142,0.55,1782.7,1782.4,5.61023]
[1743765566502,6.15951,1782.7,1782.4,5.61023]
[1743765566698,0.55,1782.7,1782.4,5.61023]
[1743765567100,6.15947,1782.7,1782.4,5.61023]
[1743765567523,5.60858,1783.0,1782.5,5.28152488]
[1743765567835,6.117,1783.0,1782.7,5.60946]
[1743765568043,6.117,1783.0,1782.8,5.60914]
[1743765568532,6.117,1783.0,1782.7,5.60946]
[1743765568747,11.72557,1783.0,1782.6,5.60973]
[1743765569054,11.72557,1783.0,1782.6,11.21933]
[1743765569262,11.72557,1783.0,1782.7,5.60946]
[1743765569953,6.117,1783.0,1782.7,5.60932]
[1743765570113,11.72568,1783.0,1782.7,5.60932]
[1743765570310,6.117,1783.0,1782.7,5.60931]
[1743765570564,6.116,1783.0,1782.8,5.60904]
[1743765570759,6.116,1783.0,1782.7,6.731332]
[1743765570960,6.15899,1782.9,1782.5,12.88442]
[1743765571163,6.15899,1782.9,1782.5,12.8843]
[1743765571444,6.116,1783.0,1782.7,5.60939]
[1743765571603,5.60868,1783.0,1782.7,5.60939]
[1743765571802,6.116,1782.9,1782.5,1.6644]
[1743765572021,6.116,1782.9,1782.8,5.60915]
[1743765572604,1.6254,1783.2,1782.9,5.60861]
[1743765572831,11.29432562,1783.3,1783.0,5.60841]
[1743765572832,6.115,1783.1,1783.0,5.60841]
[1743765574237,11.25170562,1783.3,1782.7,5.60946]
[1743765574442,5.60789,1783.2,1782.9,5.60862]
[1743765574661,7.25129,1783.2,1782.8,5.6091]
[1743765574862,7.25129,1783.2,1782.8,5.60904]
[1743765575156,7.25129,1783.2,1782.8,11.21808]
[1743765575315,12.85946,1783.2,1782.8,6.48815172]
[1743765575514,7.25129,1783.2,1782.8,12.09719172]
[1743765576177,5.13670562,1783.3,1782.8,0.87911172]
[1743765576356,11.25070562,1783.3,1783.2,5.60789]
[1743765576564,6.114,1783.4,1783.2,5.60789]
[1743765576770,6.114,1783.4,1783.1,11.21599]
[1743765577084,6.114,1783.4,1783.2,5.60779]
[1743765577387,10.74338562,1783.6,1783.2,0.560779]
[1743765577588,11.72105,1783.5,1783.2,5.60782]
[1743765578380,17.32822,1783.5,1783.1,11.21625]
[1743765578580,11.72105,1783.5,1783.2,5.60785]
[1743765578878,6.114,1783.5,1783.2,5.60777]
[1743765579085,11.72097,1783.5,1783.2,5.60777]
[1743765579282,2.0531,1783.7,1783.2,1.121594]
[1743765579283,7.6161,1783.7,1783.2,1.121594]
[1743765579449,7.6161,1783.7,1783.5,5.60683]
[1743765579648,7.6161,1783.7,1783.5,5.6068]
[1743765580263,7.6161,1783.7,1783.4,11.21442]
[1743765580458,6.113,1783.8,1783.6,11.21326]
[1743765580659,6.113,1783.9,1783.6,5.60653]
[1743765580873,6.112,1783.9,1783.6,5.60653]
[1743765581352,6.112,1783.9,1783.6,11.21305]
[1743765581646,5.13670562,1784.0,1783.7,7.1869]
[1743765581852,5.60541,1784.0,1783.7,5.6061]
[1743765582261,5.60541,1784.0,1783.6,5.60662]
[1743765582262,11.71741,1784.0,1783.6,5.60662]
[1743765582580,5.60647,1783.7,1783.3,1.5421]
[1743765582734,11.71866,1783.6,1783.3,5.60745]
[1743765582936,5.60697,1783.5,1783.2,5.60784]
[1743765583185,18.83858,1783.6,1783.2,11.21562]
[1743765583478,13.23166,1783.6,1783.3,5.60757]
[1743765583698,6.112,1783.6,1783.5,5.60695]
[1743765584170,6.112,1783.6,1783.4,5.60713]
[1743765587389,6.112,1783.6,1783.1,1.5421]
[1743765587593,11.2147,1783.4,1783.0,5.6084]
[1743765587798,2.2093,1783.5,1782.8,5.60911]
[1743765588077,5.60893,1782.9,1782.5,17.11878]
[1743765588252,17.32795,1782.9,1782.5,7.11878]
[1743765588648,5.60916,1782.8,1782.5,7.11878]
[1743765588848,5.6096,1782.7,1782.3,7.11958]
[1743765589061,5.6096,1782.7,1782.3,12.73014]
[1743765589247,5.60979,1782.6,1782.3,7.11946]
[1743765589447,5.6096,1782.7,1782.3,12.73003]
[1743765590471,11.21926,1782.7,1782.3,7.11946]
[1743765590682,5.6098,1782.6,1782.3,1.5089]
[1743765591217,5.60952,1782.7,1782.0,3.7070582]
[1743765591218,7.27013,1782.4,1782.1,5.61124]
[1743765591373,7.27013,1782.4,1782.0,5.6115]
[1743765591566,6.16075,1782.3,1782.0,5.6115]
[1743765592585,6.16075,1782.3,1781.8,12.75763]
[1743765592586,5.61114,1782.2,1781.8,12.75763]
[1743765592788,7.7306,1782.1,1781.6,7.14801]
[1743765593084,13.34196,1782.1,1781.7,5.61237]
[1743765593285,7.7306,1782.1,1781.8,5.61228]
[1743765593854,5.13670562,1782.3,1782.1,5.61135]
[1743765594085,7.7463,1782.6,1782.3,5.61072]
[1743765594657,7.7463,1782.6,1782.3,11.22127]
[1743765594854,7.7463,1782.6,1782.4,5.61028]
[1743765595157,6.111,1782.6,1782.4,11.22052]
[1743765595359,6.111,1782.6,1782.4,5.61024]
[1743765595807,5.61031,1782.5,1782.1,5.61133]
[1743765595962,11.22071,1782.5,1782.1,5.61133]
[1743765596159,13.26403,1782.6,1782.3,5.6107]
[1743765596398,5.61025,1782.5,1782.1,6.93332232]
[1743765596560,5.61076,1782.3,1782.0,5.61165]
[1743765596765,5.61076,1782.3,1781.9,11.22368]
[1743765597004,6.11,1782.2,1781.9,11.22368]
[1743765597372,6.11,1782.2,1782.0,5.61166]
[1743765598117,6.11,1782.2,1781.9,5.61184]
[1743765598279,13.24554,1782.2,1781.8,7.15339]
[1743765598482,13.24554,1782.2,1781.8,5.61213]
[1743765598483,13.24536,1782.2,1781.8,5.61213]
[1743765598713,13.24536,1782.2,1781.8,11.2243]
[1743765598915,13.24536,1782.2,1781.8,5.61213]
[1743765599295,18.8567,1782.2,1781.8,11.22431]
[1743765599634,5.6114,1782.1,1781.8,5.61213]
[1743765599932,7.6343,1782.2,1781.9,5.61171]
[1743765600084,13.24534,1782.2,1781.9,5.61171]
[1743765600287,5.61145,1782.1,1781.7,5.61255]
[1743765600584,5.61169,1782.0,1781.7,5.61255]
[1743765600783,5.61145,1782.1,1781.7,5.61245]
[1743765601026,5.61145,1782.1,1781.7,11.22496]
[1743765601226,18.85668,1782.2,1781.8,5.61221]
[1743765601397,13.24538,1782.2,1781.8,5.61221]
[1743765601919,5.13670562,1782.4,1781.9,0.05611974]
[1743765602105,11.24770562,1782.4,1782.2,5.61078]
[1743765602293,11.24770562,1782.4,1782.2,5.61103]
[1743765602500,11.24770562,1782.4,1782.1,11.2226]
[1743765602802,16.85811562,1782.4,1782.1,5.6113]
[1743765603000,16.85811562,1782.4,1782.0,5.6116]
[1743765603320,1.5526,1782.3,1782.0,5.6115]
[1743765603492,1.5526,1782.3,1781.8,11.22443]
[1743765603694,1.5526,1782.3,1781.8,5.6122]
[1743765603695,5.61125,1782.2,1781.8,5.6122]
[1743765603987,5.61141,1782.1,1781.8,5.6122]
[1743765604194,6.16127,1782.2,1781.8,5.61219]
[1743765604512,6.68930562,1782.3,1781.9,5.61198]
[1743765604706,11.24670562,1782.3,1781.9,5.61171]
[1743765605018,5.13670562,1782.3,1782.0,5.61146]
[1743765605220,11.24670562,1782.3,1782.0,5.61156]
[1743765605420,5.61116,1782.2,1781.9,5.61192]
[1743765605622,1.5495,1782.1,1781.9,5.61192]
[1743765605922,1.5495,1782.1,1781.8,5.6123]
[1743765606290,1.5495,1782.1,1781.8,5.61216]
[1743765606492,1.5495,1782.1,1781.8,11.22431]
[1743765606699,11.22352,1782.0,1781.6,5.61286]
[1743765606898,5.61167,1782.0,1781.6,11.22566]
[1743765607104,11.22359,1782.0,1781.6,5.6128]
[1743765607299,5.61203,1781.9,1781.5,11.64138352]
[1743765607504,5.61203,1781.9,1781.6,5.61288]
[1743765607711,5.61173,1782.0,1781.6,11.22565]
[1743765607712,11.22353,1782.0,1781.6,11.22565]
[1743765608022,7.16104,1782.1,1781.7,5.61249]
[1743765608186,5.61168,1782.0,1781.7,5.61246]
[1743765609008,6.11,1781.9,1781.4,12.73616]
[1743765609205,6.11,1781.9,1781.4,7.12265]
[1743765609206,5.61249,1781.8,1781.4,7.12265]
[1743765609406,11.72217,1781.9,1781.5,5.61312]
[1743765609607,11.72216,1781.9,1781.5,5.61312]
[1743765609894,5.61242,1781.8,1781.4,7.12274]
[1743765610096,7.17831,1781.7,1781.3,5.61381]
[1743765610314,5.61315,1781.6,1781.2,5.61414]
[1743765610630,5.61335,1781.5,1781.2,5.61414]
[1743765611128,11.72335,1781.5,1781.1,5.66445]
[1743765611309,7.26081,1781.4,1781.1,0.05]
[1743765611630,5.61419,1781.2,1781.1,0.05]
[1743765612104,6.16419,1781.2,1781.1,0.05]
[1743765612310,12.92239562,1781.2,1781.1,0.05]
[1743765616106,15.92239562,1781.2,1781.1,0.05]
[1743765617599,1.6101,1781.0,1780.1,0.05]
[1743765617899,0.55,1780.6,1780.1,0.05]
[1743765618123,6.111,1780.7,1780.6,5.61595]
[1743765618336,5.13670562,1781.1,1780.6,1.12322]
[1743765618337,12.90300562,1781.1,1780.6,1.12322]
[1743765618630,11.24770562,1781.1,1780.8,7.15107]
[1743765619007,11.24770562,1781.1,1781.0,5.61482]
[1743765619206,6.111,1781.1,1781.0,5.61482]
[1743765619714,11.72358,1781.4,1781.1,5.61447]
[1743765620135,17.33734,1781.4,1781.0,5.61482]
[1743765620338,11.72358,1781.4,1781.0,11.22954]
[1743765620535,11.72358,1781.4,1781.0,5.61472]
[1743765620740,5.61395,1781.3,1781.0,5.61472]
[1743765621255,11.72358,1781.4,1781.0,5.61466]
[1743765621740,11.72358,1781.4,1781.0,11.22933]
[1743765621915,11.72358,1781.4,1781.1,5.6145]
[1743765622439,11.72358,1781.4,1781.0,11.22933]
[1743765622739,17.33745,1781.4,1781.0,5.61466]
[1743765623239,11.72358,1781.4,1781.0,12.352273]
[1743765623534,11.72358,1781.4,1781.0,12.352313]
[1743765624109,0.55,1781.5,1781.2,5.61416]
[1743765624408,5.13670562,1781.6,1781.4,5.61356]
[1743765624605,11.24670562,1781.6,1781.4,6.736287]
[1743765625609,11.24670562,1781.6,1781.4,1.122727]
[1743765625934,11.24670562,1781.6,1781.0,8.344893]
[1743765626141,5.61381,1781.4,1781.0,7.22192]
[1743765626340,5.61381,1781.4,1781.0,12.8366]
[1743765626942,5.61391,1781.3,1781.0,7.22178]
[1743765627504,5.61373,1781.4,1781.0,12.8365]
[1743765627809,5.61373,1781.4,1781.0,14.12015]
[1743765628239,5.61373,1781.4,1781.0,7.22178]
[1743765628404,11.22805,1781.3,1780.9,5.61507]
[1743765628604,5.61455,1781.1,1780.8,7.11581]
[1743765628808,5.61516,1780.9,1780.4,7.23899]
[1743765629010,13.39103,1780.8,1780.4,13.579459]
[1743765629516,5.61582,1780.7,1780.4,0.723899]
[1743765629720,5.6165,1780.5,1780.1,6.08797981]
[1743765629906,13.33001,1780.4,1780.1,0.47044981]
[1743765630111,6.16706,1780.3,1780.1,0.47044981]
[1743765630306,6.16706,1780.3,1780.1,0.05]
[1743765630507,5.61734,1780.2,1780.1,0.05]
[1743765630707,12.81094562,1780.2,1780.1,0.05]
[1743765631126,15.81094562,1780.2,1780.1,0.05]
[1743765631440,19.51800382,1780.2,1780.1,0.05]
[1743765631840,19.74006447,1780.2,1780.1,0.05]
[1743765632614,5.61934,1779.6,1779.2,5.62049]
[1743765632814,11.72855,1779.5,1779.1,12.79696]
[1743765633036,6.109,1779.4,1779.2,5.62049]
[1743765633343,0.20312452,1779.3,1779.2,5.62049]
[1743765634140,0.20312452,1779.3,1779.1,7.17615]
[1743765634342,0.20312452,1779.3,1779.1,0.05]
[1743765635066,0.20312452,1779.3,1779.2,5.6205]
[1743765635356,0.20312452,1779.3,1779.1,5.67079]
[1743765635655,12.57308014,1779.3,1779.1,0.05]
[1743765635837,6.1705,1779.2,1779.1,0.05]
[1743765636037,5.68670562,1779.2,1779.1,0.05]
[1743765636277,5.337885,1779.2,1779.1,0.05]
[1743765636460,6.31117938,1779.2,1779.1,5.67081]
[1743765636754,6.31117938,1779.2,1779.1,0.05]
[1743765637129,6.31117938,1779.2,1779.1,7.831808]
[1743765637320,11.24670562,1779.5,1779.2,5.62027]
[1743765637521,0.2033123,1779.4,1779.2,11.24054]
[1743765637855,0.2033123,1779.4,1779.3,5.62018]
[1743765638043,0.2033123,1779.4,1779.3,7.25508]
[1743765638359,11.24670562,1779.8,1779.5,5.61944]
[1743765638527,11.24670562,1779.8,1779.7,5.61892]
[1743765639058,11.24670562,1779.8,1779.6,5.61923]
[1743765639555,11.24670562,1779.8,1779.5,5.61946]
[1743765639725,16.86532562,1779.8,1779.5,5.61946]
[1743765639929,11.24670562,1779.8,1779.6,11.23817]
[1743765640348,5.13670562,1779.8,1779.7,5.61892]
[1743765640827,5.13670562,1779.8,1779.6,5.61904]
[1743765641024,6.11,1780.0,1779.8,5.61842]
[1743765641430,6.11,1780.0,1779.9,5.61829]
[1743765641842,5.13670562,1780.1,1779.9,5.61829]
[1743765642240,5.13670562,1780.1,1780.0,5.61797]
[1743765642638,5.33040638,1780.1,1780.0,5.61797]
[1743765643152,5.33040638,1780.1,1779.9,6.741761]
[1743765643337,5.33040638,1780.1,1780.0,5.61797]
[1743765644839,5.61643,1780.5,1780.0,5.61797]
[1743765644840,1.6179,1780.8,1780.2,5.61734]
[1743765645140,1.6179,1780.8,1780.6,5.61597]
[1743765645351,1.6179,1780.8,1780.5,11.23262]
[1743765645648,1.6179,1780.8,1780.5,5.61624]
[1743765645849,7.23337,1780.8,1780.4,5.61669]
[1743765646051,7.23337,1780.8,1780.4,6.339219]
[1743765646250,7.23337,1780.8,1780.4,11.955749]
[1743765646573,1.6179,1780.8,1780.4,6.339199]
[1743765647269,0.55,1780.8,1780.6,5.61587]
[1743765647470,0.55,1780.8,1780.5,5.61629]
[1743765647675,1.6075,1780.6,1780.3,5.61699]
[1743765647971,7.74669,1780.8,1780.4,5.61658]
[1743765648374,5.61577,1780.7,1780.4,5.61658]
[1743765648568,13.36242,1780.8,1780.4,5.61658]
[1743765648774,7.74669,1780.8,1780.4,5.61658]
[1743765649749,13.36237,1780.8,1780.4,5.61658]
[1743765649949,2.1311,1780.8,1780.2,5.61732]
[1743765650162,2.1138,1780.6,1780.1,5.61763]
[1743765650366,5.61682,1780.4,1780.0,5.61787]
[1743765650753,6.16713,1780.3,1779.9,5.6181]
[1743765650954,6.16713,1780.3,1779.8,5.61856]
[1743765650955,7.23565,1780.2,1779.8,5.61856]
[1743765651159,6.107,1780.1,1779.8,12.360778]
[1743765651345,6.107,1780.1,1779.9,5.61828]
[1743765651677,0.55,1780.0,1779.7,5.61876]
[1743765651846,5.61847,1779.9,1779.5,6.743463]
[1743765652048,6.16861,1779.8,1779.5,6.743463]
[1743765652249,6.107,1779.7,1779.5,5.61953]
[1743765652443,6.26980353,1779.7,1779.4,5.61979]
[1743765652683,0.55,1779.6,1779.3,5.62003]
[1743765652853,6.16924,1779.6,1779.3,5.62003]
[1743765653058,0.15703639,1779.5,1779.3,5.62003]
[1743765655282,0.15703639,1779.5,1779.3,11.24004]
[1743765655485,0.15703639,1779.5,1779.4,7.17727]
[1743765655683,6.39e-06,1779.5,1779.4,10.94051878]
[1743765655850,6.08e-06,1779.5,1779.4,13.94051878]
[1743765656051,13.668,1780.2,1779.9,5.61818]
[1743765656278,13.668,1780.2,1779.3,8.325084]
[1743765656469,0.55,1779.9,1779.6,5.61912]
[1743765656678,5.73959171,1780.1,1779.7,5.61883]
[1743765656679,0.12120566,1779.8,1779.7,5.61883]
[1743765656878,0.55,1779.8,1779.7,5.61883]
[1743765657062,0.12143762,1779.8,1779.7,11.23761]
[1743765657560,0.12155359,1779.8,1779.7,11.23761]
[1743765657764,0.55,1780.0,1779.8,5.6186]
[1743765657957,0.11133135,1779.9,1779.8,5.6186]
[1743765658991,0.11133135,1779.9,1779.8,6.742338]
[1743765659185,19.28537,1780.2,1779.8,12.360838]
[1743765659387,0.11274937,1780.1,1779.8,1.123738]
[1743765659554,12.167,1780.2,1779.9,5.61818]
[1743765659756,0.11332907,1780.1,1779.9,5.61818]
[1743765660050,23.4019,1780.2,1779.8,5.61856]
[1743765660258,0.11267813,1780.0,1779.8,5.61856]
[1743765660450,0.11267813,1780.0,1779.5,5.61955]
[1743765660451,5.61811,1780.0,1779.6,5.6191]
[1743765660683,0.11225901,1779.9,1779.7,5.6188]
[1743765661096,5.73067901,1779.9,1779.6,0.77076605]
[1743765661298,5.61917,1779.7,1779.3,8.378274]
[1743765661478,5.61917,1779.7,1779.3,12.363984]
[1743765661669,0.11027914,1779.6,1779.3,12.363984]
[1743765661993,5.61917,1779.7,1779.3,12.363984]
[1743765662191,0.11027914,1779.6,1779.3,12.363984]
[1743765662400,12.27465,1779.8,1779.4,5.61959]
[1743765662558,0.1108144,1779.7,1779.5,5.61943]
[1743765662762,0.1108144,1779.7,1779.6,5.61924]
[1743765663265,0.1108144,1779.7,1779.6,5.67542573]
[1743765663472,0.1108144,1779.7,1779.6,5.61924]
[1743765663666,6.06,1779.9,1779.8,5.6186]
[1743765663867,0.11181169,1779.9,1779.8,5.6186]
[1743765664068,6.106,1780.1,1779.8,6.742347]
[1743765664292,11.72372,1780.1,1779.8,1.123747]
[1743765664499,0.11234675,1780.0,1779.7,5.61881]
[1743765664667,5.73041675,1780.0,1779.7,5.61881]
[1743765665085,5.6183,1779.9,1779.6,5.6191]
[1743765665294,5.73136888,1779.8,1779.5,7.19333]
[1743765665597,5.73136888,1779.8,1779.5,5.61946]
[1743765665776,5.73136888,1779.8,1779.4,11.23946]
[1743765666164,5.73136888,1779.8,1779.5,5.61951]
[1743765666480,5.61911,1779.7,1779.4,5.61972]
[1743765666685,0.11133645,1779.6,1779.3,5.62002]
[1743765666881,5.73061645,1779.6,1779.3,11.24009]
[1743765667073,6.16939,1779.6,1779.3,5.62002]
[1743765667276,7.28330517,1779.5,1779.2,5.62044]
[1743765667487,7.28330517,1779.5,1779.2,11.24079]
[1743765667792,1.66363517,1779.5,1779.3,5.62013]
[1743765667996,0.11043517,1779.5,1779.3,5.62013]
[1743765668167,0.11043517,1779.5,1779.3,11.24017]
[1743765668601,0.11043517,1779.5,1779.4,5.61987]
[1743765669397,0.11043517,1779.5,1779.4,6.743861]
[1743765669585,6.105,1779.7,1779.4,6.743861]
[1743765669902,0.10889866,1779.6,1779.5,5.61955]
[1743765670102,11.72397,1779.7,1779.4,5.61974]
[1743765670297,0.10900035,1779.6,1779.4,5.61974]
[1743765670604,19.44564,1779.8,1779.4,11.23947]
[1743765670779,0.10846495,1779.5,1779.4,5.61973]
[1743765670971,5.61892,1779.7,1779.4,5.61973]
[1743765671167,0.10848529,1779.5,1779.3,5.62006]
[1743765671391,5.61935,1779.6,1779.3,5.62006]
[1743765671595,5.72806529,1779.5,1779.1,11.29145]
[1743765671802,1.6112,1779.4,1779.1,5.67068]
[1743765671978,0.1282007,1779.3,1779.1,5.67068]
[1743765672603,6.2322007,1779.3,1779.1,0.05]
[1743765672804,11.8526007,1779.3,1779.1,0.05]
[1743765672983,6.104,1779.3,1779.1,0.05]
[1743765673384,0.10496365,1779.2,1779.1,0.05]
[1743765673594,11.72423,1779.3,1779.1,0.05]
[1743765673805,11.82949716,1779.3,1779.1,0.05]
[1743765673994,17.44986716,1779.3,1779.1,0.05]
[1743765674198,5.6205,1779.2,1779.1,0.05]
[1743765674396,7.7465,1779.2,1779.1,0.05]
[1743765674599,13.91148896,1779.2,1779.1,0.05]
[1743765676789,16.91148896,1779.2,1779.1,0.05]
[1743765678716,13.36148896,1779.2,1779.1,0.05]
[1743765679422,19.46548896,1779.2,1779.1,0.05]
[1743765679627,22.46548896,1779.2,1779.1,1e-05]